[Event "Titled Tuesday Blitz February 28 Early 2023"]
[White "Dilmukhametov, Artur"]
[Black "Balla, Tamas-Kristof"]
[WhiteFideId "24179922"]
[BlackFideId "1208497"]
[WhiteElo "2199"]
[BlackElo "2334"]
[Result "0-1"]
[Round "03"]
[TimeControl "180+2"]
[Date "2023.02.28"]
[WhiteClock "0:01:38"]
[BlackClock "0:01:14"]

1. d4 {[%clk 0:03:00]}  d5 {[%clk 0:02:52]} 2. Nc3 {[%clk 0:02:59]}  Nf6 {[%clk 0:02:51]} 3. Bf4 {[%clk 0:02:58]}  c5 {[%clk 0:02:51]} 4. e3 {[%clk 0:02:55]}  cxd4 {[%clk 0:02:51]} 5. exd4 {[%clk 0:02:55]}  a6 {[%clk 0:02:51]} 6. Bd3 {[%clk 0:02:55]}  Nc6 {[%clk 0:02:49]} 7. Nf3 {[%clk 0:02:51]}  Bg4 {[%clk 0:02:49]} 8. h3 {[%clk 0:02:49]}  Bxf3 {[%clk 0:02:28]} 9. Qxf3 {[%clk 0:02:44]}  Nxd4 {[%clk 0:02:27]} 10. Qe3 {[%clk 0:02:34]}  Nc6 {[%clk 0:02:24]} 11. Qf3 {[%clk 0:02:21]}  e5 {[%clk 0:02:12]} 12. Qe2 {[%clk 0:02:10]}  Bd6 {[%clk 0:02:05]} 13. f3 {[%clk 0:02:03]}  O-O {[%clk 0:01:57]} 14. Bg3 {[%clk 0:02:03]}  e4 {[%clk 0:01:52]} 15. Bxd6 {[%clk 0:02:02]}  exd3 {[%clk 0:01:51]} 16. Qxd3 {[%clk 0:02:00]}  Qxd6 {[%clk 0:01:50]} 17. O-O-O {[%clk 0:01:58]}  Rad8 {[%clk 0:01:41]} 18. Ne4 {[%clk 0:01:47]}  Nxe4 {[%clk 0:01:38]} 19. fxe4 {[%clk 0:01:46]}  d4 {[%clk 0:01:34]} 20. g4 {[%clk 0:01:44]}  Ne5 {[%clk 0:01:30]} 21. Qd2 {[%clk 0:01:41]}  Qb6 {[%clk 0:01:15]} 22. g5 {[%clk 0:01:38]}  Nc4 {[%clk 0:01:14]} 0-1


[Site "https://www.chess.com"]

[Event "Titled Tuesday Blitz February 28 Early 2023"]
[White "Sokac, Marko"]
[Black "Gharamian, Tigran"]
[WhiteFideId "14531356"]
[BlackFideId "13301527"]
[WhiteElo "2355"]
[BlackElo "2638"]
[Result "0-1"]
[Round "03"]
[TimeControl "180+2"]
[Date "2023.02.28"]
[WhiteClock "0:00:10"]
[BlackClock "0:00:14"]

1. e4 {[%clk 0:03:00]}  c6 {[%clk 0:02:59]} 2. Nc3 {[%clk 0:02:57]}  d5 {[%clk 0:03:00]} 3. d3 {[%clk 0:02:57]}  g6 {[%clk 0:02:59]} 4. h4 {[%clk 0:02:57]}  h6 {[%clk 0:02:57]} 5. h5 {[%clk 0:02:57]}  g5 {[%clk 0:02:58]} 6. f4 {[%clk 0:02:56]}  gxf4 {[%clk 0:02:53]} 7. Bxf4 {[%clk 0:02:57]}  Bg7 {[%clk 0:02:51]} 8. Nge2 {[%clk 0:02:51]}  e5 {[%clk 0:02:37]} 9. Bg3 {[%clk 0:02:45]}  d4 {[%clk 0:02:27]} 10. Nb1 {[%clk 0:02:44]}  Nf6 {[%clk 0:02:28]} 11. Ng1 {[%clk 0:02:40]}  Ng4 {[%clk 0:02:26]} 12. Bf2 {[%clk 0:02:23]}  Nxf2 {[%clk 0:02:14]} 13. Kxf2 {[%clk 0:02:24]}  Be6 {[%clk 0:01:59]} 14. Nd2 {[%clk 0:02:24]}  Nd7 {[%clk 0:01:58]} 15. Be2 {[%clk 0:02:22]}  Nf6 {[%clk 0:01:56]} 16. Ngf3 {[%clk 0:02:18]}  Ng4+ {[%clk 0:01:55]} 17. Kg3 {[%clk 0:02:13]}  Bf6 {[%clk 0:01:51]} 18. Nxd4 {[%clk 0:02:05]}  Qxd4 {[%clk 0:01:42]} 19. Bxg4 {[%clk 0:02:05]}  Rg8 {[%clk 0:01:42]} 20. Nf3 {[%clk 0:01:58]}  Rxg4+ {[%clk 0:01:38]} 21. Kh2 {[%clk 0:01:53]}  Qe3 {[%clk 0:01:37]} 22. Re1 {[%clk 0:01:43]}  Qf4+ {[%clk 0:01:35]} 23. Kh1 {[%clk 0:01:40]}  O-O-O {[%clk 0:01:19]} 24. Qe2 {[%clk 0:01:39]}  Rdg8 {[%clk 0:01:18]} 25. Rf1 {[%clk 0:01:27]}  Rg3 {[%clk 0:01:18]} 26. Nh2 {[%clk 0:01:22]}  Qh4 {[%clk 0:01:15]} 27. Rf2 {[%clk 0:01:20]}  Bg5 {[%clk 0:01:10]} 28. Raf1 {[%clk 0:01:13]}  Bf4 {[%clk 0:01:10]} 29. c3 {[%clk 0:00:58]}  Bg4 {[%clk 0:01:08]} 30. Rxf4 {[%clk 0:00:55]}  exf4 {[%clk 0:01:03]} 31. Rxf4 {[%clk 0:00:56]}  Qxh5 {[%clk 0:00:56]} 32. Qf2 {[%clk 0:00:52]}  Bd7 {[%clk 0:00:55]} 33. Rxf7 {[%clk 0:00:45]}  Qg5 {[%clk 0:00:27]} 34. Qxa7 {[%clk 0:00:39]}  Rxg2 {[%clk 0:00:19]} 35. Qa8+ {[%clk 0:00:19]}  Kc7 {[%clk 0:00:19]} 36. Rxd7+ {[%clk 0:00:19]}  Kxd7 {[%clk 0:00:19]} 37. Qxb7+ {[%clk 0:00:19]}  Ke8 {[%clk 0:00:18]} 38. Qxc6+ {[%clk 0:00:18]}  Kf7 {[%clk 0:00:18]} 39. Qd7+ {[%clk 0:00:18]}  Kf8 {[%clk 0:00:16]} 40. Qc8+ {[%clk 0:00:17]}  Kg7 {[%clk 0:00:16]} 41. Qd7+ {[%clk 0:00:16]}  Kh8 {[%clk 0:00:16]} 42. Qd4+ {[%clk 0:00:16]}  Kh7 {[%clk 0:00:15]} 43. Qd7+ {[%clk 0:00:10]}  Rg7 {[%clk 0:00:15]} 44. Qd4 {[%clk 0:00:10]}  Rxh2+ {[%clk 0:00:14]} 45. Kxh2 {[%clk 0:00:10]}  Qh4# {[%clk 0:00:14]} 0-1


[Site "https://www.chess.com"]

[Event "Titled Tuesday Blitz February 28 Early 2023"]
[White "Kaufman, Raymond"]
[Black "Sanchez, Robert"]
[WhiteFideId "2015056"]
[BlackFideId "2034360"]
[WhiteElo "2321"]
[BlackElo "2440"]
[Result "1/2-1/2"]
[Round "03"]
[TimeControl "180+2"]
[Date "2023.02.28"]
[WhiteClock "0:00:18"]
[BlackClock "0:00:07"]

1. c4 {[%clk 0:03:00]}  c6 {[%clk 0:02:58]} 2. g3 {[%clk 0:02:56]}  d5 {[%clk 0:02:58]} 3. Bg2 {[%clk 0:02:57]}  Nf6 {[%clk 0:02:58]} 4. Nf3 {[%clk 0:02:49]}  e6 {[%clk 0:02:53]} 5. O-O {[%clk 0:02:24]}  Be7 {[%clk 0:02:53]} 6. Qc2 {[%clk 0:02:19]}  O-O {[%clk 0:02:53]} 7. b3 {[%clk 0:02:16]}  a5 {[%clk 0:02:46]} 8. Bb2 {[%clk 0:02:09]}  Na6 {[%clk 0:02:45]} 9. a3 {[%clk 0:02:08]}  Bd7 {[%clk 0:02:43]} 10. d4 {[%clk 0:02:07]}  Rc8 {[%clk 0:02:33]} 11. Ne5 {[%clk 0:02:02]}  c5 {[%clk 0:02:27]} 12. Nxd7 {[%clk 0:01:46]}  Qxd7 {[%clk 0:02:27]} 13. dxc5 {[%clk 0:01:36]}  Nxc5 {[%clk 0:02:25]} 14. Nc3 {[%clk 0:01:29]}  dxc4 {[%clk 0:02:15]} 15. bxc4 {[%clk 0:01:30]}  Rfd8 {[%clk 0:01:53]} 16. Rfd1 {[%clk 0:01:20]}  Qe8 {[%clk 0:01:53]} 17. Nb5 {[%clk 0:01:18]}  a4 {[%clk 0:01:33]} 18. Rxd8 {[%clk 0:01:04]}  Qxd8 {[%clk 0:01:29]} 19. Rd1 {[%clk 0:01:05]}  Qe8 {[%clk 0:01:17]} 20. Be5 {[%clk 0:00:58]}  Rd8 {[%clk 0:00:53]} 21. Nc7 {[%clk 0:00:35]}  Rxd1+ {[%clk 0:00:51]} 22. Qxd1 {[%clk 0:00:35]}  Qd7 {[%clk 0:00:47]} 23. Qxd7 {[%clk 0:00:34]}  Nfxd7 {[%clk 0:00:47]} 24. Bd4 {[%clk 0:00:32]}  b6 {[%clk 0:00:42]} 25. Nb5 {[%clk 0:00:31]}  Nb3 {[%clk 0:00:38]} 26. Bc3 {[%clk 0:00:29]}  Bf6 {[%clk 0:00:33]} 27. Bb4 {[%clk 0:00:25]}  Bd4 {[%clk 0:00:25]} 28. e3 {[%clk 0:00:25]}  Bc5 {[%clk 0:00:25]} 29. Bc3 {[%clk 0:00:25]}  Kf8 {[%clk 0:00:21]} 30. Bc6 {[%clk 0:00:24]}  Nb8 {[%clk 0:00:18]} 31. Be4 {[%clk 0:00:23]}  f5 {[%clk 0:00:17]} 32. Bc2 {[%clk 0:00:22]}  Ke7 {[%clk 0:00:14]} 33. Kf1 {[%clk 0:00:20]}  g6 {[%clk 0:00:12]} 34. Ke2 {[%clk 0:00:20]}  Nc6 {[%clk 0:00:12]} 35. f4 {[%clk 0:00:20]}  Nca5 {[%clk 0:00:08]} 36. Kd3 {[%clk 0:00:18]}  Nc6 {[%clk 0:00:07]} 37. Ke2 {[%clk 0:00:18]}  Nca5 {[%clk 0:00:07]} 38. Kd3 {[%clk 0:00:18]}  Nc6 {[%clk 0:00:06]} 39. e4 {[%clk 0:00:18]}  Nc1+ {[%clk 0:00:05]} 40. Kd2 {[%clk 0:00:18]}  Nb3+ {[%clk 0:00:06]} 41. Kd3 {[%clk 0:00:18]}  Nc1+ {[%clk 0:00:06]} 42. Kd2 {[%clk 0:00:18]}  Nb3+ {[%clk 0:00:07]} 43. Kd3 {[%clk 0:00:18]} 1/2-1/2


[Site "https://www.chess.com"]

[Event "Titled Tuesday Blitz February 28 Early 2023"]
[White "Sreyas Payyappat"]
[Black "Einarsson, Halldor Gretar"]
[WhiteFideId "46674969"]
[BlackFideId "2300150"]
[WhiteElo "2083"]
[BlackElo "2126"]
[Result "1-0"]
[Round "03"]
[TimeControl "180+2"]
[Date "2023.02.28"]
[WhiteClock "0:00:17"]
[BlackClock "0:00:01"]

1. e4 {[%clk 0:03:00]}  c5 {[%clk 0:02:58]} 2. Nf3 {[%clk 0:03:01]}  Nc6 {[%clk 0:02:58]} 3. d4 {[%clk 0:03:01]}  cxd4 {[%clk 0:02:58]} 4. Nxd4 {[%clk 0:03:02]}  Nf6 {[%clk 0:02:58]} 5. Nc3 {[%clk 0:03:02]}  e5 {[%clk 0:02:59]} 6. Ndb5 {[%clk 0:03:01]}  d6 {[%clk 0:02:59]} 7. Bg5 {[%clk 0:02:59]}  a6 {[%clk 0:03:00]} 8. Na3 {[%clk 0:03:00]}  b5 {[%clk 0:03:00]} 9. Nd5 {[%clk 0:03:00]}  Be7 {[%clk 0:02:59]} 10. Bxf6 {[%clk 0:03:01]}  Bxf6 {[%clk 0:02:59]} 11. c4 {[%clk 0:03:01]}  b4 {[%clk 0:02:56]} 12. Nc2 {[%clk 0:03:01]}  a5 {[%clk 0:02:56]} 13. g3 {[%clk 0:02:59]}  Bg5 {[%clk 0:02:49]} 14. Bg2 {[%clk 0:02:59]}  O-O {[%clk 0:02:31]} 15. O-O {[%clk 0:02:59]}  Ne7 {[%clk 0:01:40]} 16. f4 {[%clk 0:02:43]}  Nxd5 {[%clk 0:01:39]} 17. Qxd5 {[%clk 0:02:18]}  Be6 {[%clk 0:01:38]} 18. Qd3 {[%clk 0:02:18]}  exf4 {[%clk 0:01:06]} 19. gxf4 {[%clk 0:02:19]}  Bf6 {[%clk 0:00:58]} 20. Rab1 {[%clk 0:02:15]}  Qb6+ {[%clk 0:00:49]} 21. Kh1 {[%clk 0:02:14]}  Rac8 {[%clk 0:00:41]} 22. b3 {[%clk 0:02:11]}  a4 {[%clk 0:00:39]} 23. Rbd1 {[%clk 0:02:08]}  axb3 {[%clk 0:00:34]} 24. axb3 {[%clk 0:02:09]}  Bg4 {[%clk 0:00:28]} 25. Bf3 {[%clk 0:01:36]}  Bxf3+ {[%clk 0:00:20]} 26. Rxf3 {[%clk 0:01:35]}  Rcd8 {[%clk 0:00:18]} 27. Ne3 {[%clk 0:01:34]}  Qb8 {[%clk 0:00:07]} 28. Rg1 {[%clk 0:01:31]}  g6 {[%clk 0:00:06]} 29. Nd5 {[%clk 0:01:21]}  Bg7 {[%clk 0:00:06]} 30. f5 {[%clk 0:01:22]}  Rfe8 {[%clk 0:00:06]} 31. f6 {[%clk 0:01:17]}  Bh6 {[%clk 0:00:05]} 32. Rh3 {[%clk 0:01:14]}  Bf8 {[%clk 0:00:05]} 33. Qf3 {[%clk 0:01:01]}  Re5 {[%clk 0:00:05]} 34. Qf4 {[%clk 0:00:55]}  Rde8 {[%clk 0:00:03]} 35. Qh4 {[%clk 0:00:31]}  h5 {[%clk 0:00:01]} 36. Qf2 {[%clk 0:00:17]} 1-0


[Site "https://www.chess.com"]

[Event "Titled Tuesday Blitz February 28 Early 2023"]
[White "Buksa, Nataliya"]
[Black "Mendez Machado, Andre"]
[WhiteFideId "14123622"]
[BlackFideId "6603793"]
[WhiteElo "2316"]
[BlackElo "1989"]
[Result "1-0"]
[Round "03"]
[TimeControl "180+2"]
[Date "2023.02.28"]
[WhiteClock "0:01:47"]
[BlackClock "0:00:11"]

1. d4 {[%clk 0:03:00]}  Nf6 {[%clk 0:02:59]} 2. Nc3 {[%clk 0:03:00]}  d5 {[%clk 0:02:59]} 3. Bf4 {[%clk 0:02:59]}  e6 {[%clk 0:02:58]} 4. Nb5 {[%clk 0:02:59]}  Na6 {[%clk 0:02:58]} 5. e3 {[%clk 0:02:59]}  c6 {[%clk 0:02:55]} 6. Nc3 {[%clk 0:02:59]}  Be7 {[%clk 0:02:31]} 7. Nf3 {[%clk 0:02:58]}  Qa5 {[%clk 0:02:29]} 8. Bd3 {[%clk 0:02:57]}  Nh5 {[%clk 0:02:20]} 9. Be5 {[%clk 0:02:55]}  f6 {[%clk 0:02:08]} 10. Bg3 {[%clk 0:02:55]}  Nxg3 {[%clk 0:02:02]} 11. hxg3 {[%clk 0:02:56]}  h6 {[%clk 0:02:02]} 12. Bg6+ {[%clk 0:02:55]}  Kd8 {[%clk 0:02:00]} 13. O-O {[%clk 0:02:56]}  Nc7 {[%clk 0:01:54]} 14. e4 {[%clk 0:02:56]}  b5 {[%clk 0:01:54]} 15. exd5 {[%clk 0:02:55]}  cxd5 {[%clk 0:01:51]} 16. a3 {[%clk 0:02:52]}  Rb8 {[%clk 0:01:50]} 17. Bd3 {[%clk 0:02:48]}  a6 {[%clk 0:01:46]} 18. Re1 {[%clk 0:02:47]}  b4 {[%clk 0:01:41]} 19. axb4 {[%clk 0:02:46]}  Qxb4 {[%clk 0:01:42]} 20. Ra2 {[%clk 0:02:45]}  h5 {[%clk 0:01:39]} 21. Ne2 {[%clk 0:02:33]}  g5 {[%clk 0:01:37]} 22. Nc1 {[%clk 0:02:28]}  h4 {[%clk 0:01:32]} 23. g4 {[%clk 0:02:23]}  Qb6 {[%clk 0:00:57]} 24. Nb3 {[%clk 0:02:18]}  Bd7 {[%clk 0:00:52]} 25. Qe2 {[%clk 0:02:04]}  Bb5 {[%clk 0:00:43]} 26. Bxb5 {[%clk 0:02:03]}  Qxb5 {[%clk 0:00:40]} 27. Qe3 {[%clk 0:02:02]}  Qc6 {[%clk 0:00:29]} 28. Qd3 {[%clk 0:01:51]}  Bd6 {[%clk 0:00:20]} 29. Nbd2 {[%clk 0:01:49]}  h3 {[%clk 0:00:16]} 30. gxh3 {[%clk 0:01:48]}  Rxh3 {[%clk 0:00:15]} 31. Kg2 {[%clk 0:01:49]}  Rh8 {[%clk 0:00:12]} 32. Qg6 {[%clk 0:01:48]}  Ke7 {[%clk 0:00:11]} 33. Qg7+ {[%clk 0:01:47]} 1-0


[Site "https://www.chess.com"]

[Event "Titled Tuesday Blitz February 28 Early 2023"]
[White "Chakravarthi Reddy, M"]
[Black "Ardila, Oscar Humberto"]
[WhiteFideId "25009532"]
[BlackFideId "4404742"]
[WhiteElo "2201"]
[BlackElo "1946"]
[Result "0-1"]
[Round "03"]
[TimeControl "180+2"]
[Date "2023.02.28"]
[WhiteClock "0:00:03"]
[BlackClock "0:00:14"]

1. c4 {[%clk 0:03:00]}  Nf6 {[%clk 0:02:59]} 2. Nc3 {[%clk 0:02:58]}  g6 {[%clk 0:03:00]} 3. d4 {[%clk 0:02:58]}  Bg7 {[%clk 0:03:00]} 4. e4 {[%clk 0:02:58]}  d6 {[%clk 0:03:00]} 5. Nf3 {[%clk 0:02:59]}  O-O {[%clk 0:03:00]} 6. Be2 {[%clk 0:03:00]}  Nbd7 {[%clk 0:03:00]} 7. O-O {[%clk 0:03:00]}  c6 {[%clk 0:03:01]} 8. Re1 {[%clk 0:03:00]}  Qc7 {[%clk 0:03:01]} 9. Qc2 {[%clk 0:02:55]}  e5 {[%clk 0:03:01]} 10. h3 {[%clk 0:02:56]}  Re8 {[%clk 0:03:01]} 11. Be3 {[%clk 0:02:52]}  a5 {[%clk 0:03:00]} 12. dxe5 {[%clk 0:02:52]}  dxe5 {[%clk 0:02:54]} 13. Red1 {[%clk 0:02:50]}  b6 {[%clk 0:02:51]} 14. Rd2 {[%clk 0:02:43]}  Nc5 {[%clk 0:02:51]} 15. Rad1 {[%clk 0:02:41]}  Ne6 {[%clk 0:02:16]} 16. Na4 {[%clk 0:02:32]}  c5 {[%clk 0:02:16]} 17. Nc3 {[%clk 0:02:31]}  Nd4 {[%clk 0:02:15]} 18. Bxd4 {[%clk 0:02:23]}  exd4 {[%clk 0:02:15]} 19. Nb5 {[%clk 0:02:19]}  Qf4 {[%clk 0:02:05]} 20. e5 {[%clk 0:02:15]}  Bf5 {[%clk 0:02:02]} 21. Bd3 {[%clk 0:01:44]}  Ne4 {[%clk 0:00:32]} 22. Nc7 {[%clk 0:01:40]}  Nxd2 {[%clk 0:00:30]} 23. Qxd2 {[%clk 0:01:38]}  Qxd2 {[%clk 0:00:27]} 24. Rxd2 {[%clk 0:01:38]}  Bxd3 {[%clk 0:00:27]} 25. Rxd3 {[%clk 0:01:26]}  Rad8 {[%clk 0:00:27]} 26. Nxe8 {[%clk 0:01:22]}  Rxe8 {[%clk 0:00:27]} 27. Rb3 {[%clk 0:01:13]}  Re6 {[%clk 0:00:24]} 28. Kf1 {[%clk 0:01:01]}  h6 {[%clk 0:00:24]} 29. Rd3 {[%clk 0:00:47]}  Bxe5 {[%clk 0:00:21]} 30. a3 {[%clk 0:00:48]}  Bd6 {[%clk 0:00:20]} 31. b4 {[%clk 0:00:45]}  axb4 {[%clk 0:00:20]} 32. axb4 {[%clk 0:00:45]}  f5 {[%clk 0:00:18]} 33. g4 {[%clk 0:00:40]}  Kf7 {[%clk 0:00:18]} 34. b5 {[%clk 0:00:39]}  Kf6 {[%clk 0:00:17]} 35. Ra3 {[%clk 0:00:37]}  fxg4 {[%clk 0:00:17]} 36. hxg4 {[%clk 0:00:37]}  h5 {[%clk 0:00:18]} 37. gxh5 {[%clk 0:00:32]}  gxh5 {[%clk 0:00:17]} 38. Ra6 {[%clk 0:00:31]}  Bf4 {[%clk 0:00:17]} 39. Ra8 {[%clk 0:00:29]}  d3 {[%clk 0:00:17]} 40. Rd8 {[%clk 0:00:29]}  d2 {[%clk 0:00:15]} 41. Nxd2 {[%clk 0:00:26]}  Bxd2 {[%clk 0:00:14]} 42. Rxd2 {[%clk 0:00:27]}  Kf5 {[%clk 0:00:14]} 43. Rd5+ {[%clk 0:00:26]}  Kg4 {[%clk 0:00:14]} 44. Kg2 {[%clk 0:00:25]}  h4 {[%clk 0:00:14]} 45. f3+ {[%clk 0:00:21]}  Kf4 {[%clk 0:00:14]} 46. Rh5 {[%clk 0:00:17]}  Re2+ {[%clk 0:00:14]} 47. Kh3 {[%clk 0:00:18]}  Kxf3 {[%clk 0:00:15]} 48. Rxh4 {[%clk 0:00:17]}  Re1 {[%clk 0:00:15]} 49. Kh2 {[%clk 0:00:16]}  Re2+ {[%clk 0:00:15]} 50. Kg1 {[%clk 0:00:16]}  Re4 {[%clk 0:00:15]} 51. Rh3+ {[%clk 0:00:15]}  Ke2 {[%clk 0:00:15]} 52. Rc3 {[%clk 0:00:14]}  Kd2 {[%clk 0:00:15]} 53. Ra3 {[%clk 0:00:12]}  Rg4+ {[%clk 0:00:15]} 54. Kf2 {[%clk 0:00:11]}  Rxc4 {[%clk 0:00:16]} 55. Ra6 {[%clk 0:00:11]}  Rb4 {[%clk 0:00:16]} 56. Rxb6 {[%clk 0:00:11]}  c4 {[%clk 0:00:17]} 57. Rd6+ {[%clk 0:00:07]}  Kc2 {[%clk 0:00:16]} 58. b6 {[%clk 0:00:08]}  c3 {[%clk 0:00:16]} 59. Ke2 {[%clk 0:00:07]}  Kb1 {[%clk 0:00:16]} 60. Rd1+ {[%clk 0:00:06]}  Kb2 {[%clk 0:00:15]} 61. Rd6 {[%clk 0:00:06]}  c2 {[%clk 0:00:15]} 62. Rd2 {[%clk 0:00:03]}  Kb1 {[%clk 0:00:14]} 0-1


[Site "https://www.chess.com"]

[Event "Titled Tuesday Blitz February 28 Early 2023"]
[White "Pourkashiyan, Atousa"]
[Black "Onslow, Alfie"]
[WhiteFideId "12502014"]
[BlackFideId "436976"]
[WhiteElo "2228"]
[BlackElo "2114"]
[Result "1-0"]
[Round "03"]
[TimeControl "180+2"]
[Date "2023.02.28"]
[WhiteClock "0:00:27"]
[BlackClock "0:00:03"]

1. e4 {[%clk 0:02:24]}  d6 {[%clk 0:02:48]} 2. d4 {[%clk 0:02:23]}  e5 {[%clk 0:02:49]} 3. dxe5 {[%clk 0:02:23]}  dxe5 {[%clk 0:02:49]} 4. Qxd8+ {[%clk 0:02:24]}  Kxd8 {[%clk 0:02:50]} 5. Bc4 {[%clk 0:02:24]}  Be6 {[%clk 0:02:49]} 6. Bxe6 {[%clk 0:02:23]}  fxe6 {[%clk 0:02:50]} 7. Nf3 {[%clk 0:02:24]}  Nd7 {[%clk 0:02:50]} 8. Nc3 {[%clk 0:02:23]}  Ngf6 {[%clk 0:02:47]} 9. Bg5 {[%clk 0:02:22]}  c6 {[%clk 0:02:47]} 10. O-O-O {[%clk 0:02:21]}  Kc7 {[%clk 0:02:47]} 11. a3 {[%clk 0:02:15]}  b5 {[%clk 0:02:42]} 12. Rd2 {[%clk 0:02:12]}  Bc5 {[%clk 0:02:29]} 13. Rhd1 {[%clk 0:02:09]}  Rhd8 {[%clk 0:02:28]} 14. Bxf6 {[%clk 0:01:24]}  gxf6 {[%clk 0:02:25]} 15. Ne2 {[%clk 0:01:21]}  Nb6 {[%clk 0:02:23]} 16. Rxd8 {[%clk 0:00:46]}  Rxd8 {[%clk 0:02:24]} 17. Rxd8 {[%clk 0:00:46]}  Kxd8 {[%clk 0:02:25]} 18. Ng3 {[%clk 0:00:45]}  Bxf2 {[%clk 0:02:25]} 19. Nh5 {[%clk 0:00:43]}  Ke7 {[%clk 0:02:21]} 20. Kd2 {[%clk 0:00:41]}  Nc4+ {[%clk 0:02:20]} 21. Kc1 {[%clk 0:00:39]}  Be3+ {[%clk 0:02:15]} 22. Kb1 {[%clk 0:00:38]}  Nd2+ {[%clk 0:02:11]} 23. Nxd2 {[%clk 0:00:37]}  Bxd2 {[%clk 0:02:12]} 24. c3 {[%clk 0:00:36]}  f5 {[%clk 0:02:12]} 25. Ng3 {[%clk 0:00:34]}  Kf6 {[%clk 0:02:11]} 26. Kc2 {[%clk 0:00:33]}  Bf4 {[%clk 0:02:11]} 27. Nh5+ {[%clk 0:00:31]}  Kg5 {[%clk 0:02:10]} 28. Ng7 {[%clk 0:00:32]}  Bxh2 {[%clk 0:02:04]} 29. Nxe6+ {[%clk 0:00:32]}  Kf6 {[%clk 0:02:01]} 30. Nc5 {[%clk 0:00:31]}  Bg1 {[%clk 0:01:52]} 31. Nd7+ {[%clk 0:00:30]}  Ke6 {[%clk 0:01:47]} 32. Nf8+ {[%clk 0:00:30]}  Ke7 {[%clk 0:01:37]} 33. Nxh7 {[%clk 0:00:30]}  fxe4 {[%clk 0:01:36]} 34. Ng5 {[%clk 0:00:27]}  e3 {[%clk 0:01:35]} 35. Kd3 {[%clk 0:00:27]}  Kd6 {[%clk 0:01:24]} 36. Nh3 {[%clk 0:00:23]}  e4+ {[%clk 0:01:09]} 37. Ke2 {[%clk 0:00:23]}  Bh2 {[%clk 0:01:02]} 38. Kxe3 {[%clk 0:00:23]}  Ke5 {[%clk 0:01:01]} 39. Nf2 {[%clk 0:00:24]}  Bg1 {[%clk 0:00:35]} 40. Ke2 {[%clk 0:00:23]}  c5 {[%clk 0:00:31]} 41. Ng4+ {[%clk 0:00:22]}  Kf4 {[%clk 0:00:28]} 42. Nf6 {[%clk 0:00:23]}  c4 {[%clk 0:00:23]} 43. Nd5+ {[%clk 0:00:23]}  Kg3 {[%clk 0:00:22]} 44. Nc7 {[%clk 0:00:23]}  a6 {[%clk 0:00:10]} 45. Nxa6 {[%clk 0:00:23]}  Bb6 {[%clk 0:00:11]} 46. Nb8 {[%clk 0:00:23]}  Kxg2 {[%clk 0:00:07]} 47. Nd7 {[%clk 0:00:23]}  Ba7 {[%clk 0:00:05]} 48. Nf6 {[%clk 0:00:23]}  e3 {[%clk 0:00:06]} 49. Nd5 {[%clk 0:00:24]}  Kg3 {[%clk 0:00:06]} 50. Nc7 {[%clk 0:00:24]}  Kf4 {[%clk 0:00:04]} 51. Nxb5 {[%clk 0:00:25]}  Bc5 {[%clk 0:00:04]} 52. Nc7 {[%clk 0:00:25]}  Ke5 {[%clk 0:00:04]} 53. Nb5 {[%clk 0:00:24]}  Kd5 {[%clk 0:00:04]} 54. a4 {[%clk 0:00:25]}  Kc6 {[%clk 0:00:04]} 55. Nd4+ {[%clk 0:00:25]}  Kb6 {[%clk 0:00:04]} 56. Kxe3 {[%clk 0:00:26]}  Ka5 {[%clk 0:00:04]} 57. Ke4 {[%clk 0:00:25]}  Kxa4 {[%clk 0:00:04]} 58. Kd5 {[%clk 0:00:25]}  Ba7 {[%clk 0:00:04]} 59. Kxc4 {[%clk 0:00:26]}  Bb8 {[%clk 0:00:04]} 60. b4 {[%clk 0:00:26]}  Ba7 {[%clk 0:00:02]} 61. b5 {[%clk 0:00:26]}  Bb8 {[%clk 0:00:03]} 62. Kd5 {[%clk 0:00:27]}  Ba7 {[%clk 0:00:03]} 63. Kc6 {[%clk 0:00:27]}  Bxd4 {[%clk 0:00:03]} 64. cxd4 {[%clk 0:00:27]} 1-0


[Site "https://www.chess.com"]

[Event "Titled Tuesday Blitz February 28 Early 2023"]
[White "Cueto, Jonny"]
[Black "Fan_Of_Chucky"]
[WhiteFideId "3300145"]
[WhiteElo "2212"]
[BlackElo "2408"]
[Result "0-1"]
[Round "03"]
[TimeControl "180+2"]
[Date "2023.02.28"]
[WhiteClock "0:02:13"]
[BlackClock "0:01:46"]

1. d4 {[%clk 0:03:00]}  c5 {[%clk 0:02:59]} 2. d5 {[%clk 0:03:00]}  Nf6 {[%clk 0:02:58]} 3. Nc3 {[%clk 0:02:59]}  e6 {[%clk 0:02:54]} 4. e4 {[%clk 0:02:59]}  exd5 {[%clk 0:02:46]} 5. exd5 {[%clk 0:03:00]}  d6 {[%clk 0:02:46]} 6. Bb5+ {[%clk 0:03:00]}  Nbd7 {[%clk 0:02:35]} 7. a4 {[%clk 0:03:00]}  a6 {[%clk 0:02:27]} 8. Be2 {[%clk 0:03:00]}  Ne5 {[%clk 0:02:21]} 9. f4 {[%clk 0:02:43]}  Ng6 {[%clk 0:02:16]} 10. Nf3 {[%clk 0:02:39]}  Be7 {[%clk 0:02:11]} 11. O-O {[%clk 0:02:39]}  O-O {[%clk 0:02:06]} 12. Nd2 {[%clk 0:02:15]}  Bf5 {[%clk 0:01:53]} 13. Nc4 {[%clk 0:02:13]}  Bd7 {[%clk 0:01:46]} 0-1


[Site "https://www.chess.com"]

[Event "Titled Tuesday Blitz February 28 Early 2023"]
[White "Wendt, Jan-Dietrich"]
[Black "Clawitter, Craig"]
[WhiteFideId "4623797"]
[BlackFideId "2023105"]
[WhiteElo "2302"]
[BlackElo "2221"]
[Result "0-1"]
[Round "03"]
[TimeControl "180+2"]
[Date "2023.02.28"]
[WhiteClock "0:00:21"]
[BlackClock "0:00:12"]

1. Nf3 {[%clk 0:03:00]}  Nf6 {[%clk 0:02:59]} 2. c4 {[%clk 0:03:00]}  e6 {[%clk 0:02:59]} 3. Nc3 {[%clk 0:02:58]}  d5 {[%clk 0:02:59]} 4. d4 {[%clk 0:02:57]}  c6 {[%clk 0:02:59]} 5. g3 {[%clk 0:02:54]}  Nbd7 {[%clk 0:02:54]} 6. Bg2 {[%clk 0:02:55]}  dxc4 {[%clk 0:02:54]} 7. O-O {[%clk 0:02:55]}  b5 {[%clk 0:02:54]} 8. e4 {[%clk 0:02:52]}  Bb7 {[%clk 0:02:51]} 9. Qe2 {[%clk 0:02:51]}  a6 {[%clk 0:02:47]} 10. Bf4 {[%clk 0:02:51]}  Be7 {[%clk 0:02:44]} 11. Rad1 {[%clk 0:02:39]}  O-O {[%clk 0:02:44]} 12. Ne5 {[%clk 0:02:39]}  Nxe5 {[%clk 0:02:39]} 13. dxe5 {[%clk 0:02:33]}  Nd7 {[%clk 0:02:39]} 14. h4 {[%clk 0:02:32]}  Qc7 {[%clk 0:02:32]} 15. Qh5 {[%clk 0:02:18]}  g6 {[%clk 0:02:14]} 16. Qh6 {[%clk 0:02:17]}  Rfd8 {[%clk 0:02:01]} 17. h5 {[%clk 0:02:14]}  Nxe5 {[%clk 0:01:55]} 18. hxg6 {[%clk 0:01:54]}  hxg6 {[%clk 0:01:39]} 19. Bh3 {[%clk 0:01:42]}  Bf8 {[%clk 0:01:19]} 20. Bxe5 {[%clk 0:01:38]}  Qxe5 {[%clk 0:01:16]} 21. Qh4 {[%clk 0:01:37]}  Rd3 {[%clk 0:00:52]} 22. f4 {[%clk 0:01:23]}  Qd4+ {[%clk 0:00:47]} 23. Kh2 {[%clk 0:01:20]}  b4 {[%clk 0:00:44]} 24. Rxd3 {[%clk 0:01:03]}  cxd3 {[%clk 0:00:36]} 25. Nd1 {[%clk 0:01:03]}  c5 {[%clk 0:00:31]} 26. Nf2 {[%clk 0:00:58]}  c4 {[%clk 0:00:25]} 27. Bg2 {[%clk 0:00:44]}  c3 {[%clk 0:00:22]} 28. bxc3 {[%clk 0:00:43]}  bxc3 {[%clk 0:00:23]} 29. e5 {[%clk 0:00:35]}  Bxg2 {[%clk 0:00:21]} 30. Kxg2 {[%clk 0:00:36]}  Bg7 {[%clk 0:00:15]} 31. Ng4 {[%clk 0:00:30]}  d2 {[%clk 0:00:14]} 32. Nf6+ {[%clk 0:00:19]}  Bxf6 {[%clk 0:00:13]} 33. Qxf6 {[%clk 0:00:20]}  d1=Q {[%clk 0:00:12]} 34. Rxd1 {[%clk 0:00:20]}  Qxd1 {[%clk 0:00:12]} 35. f5 {[%clk 0:00:21]}  Qc2+ {[%clk 0:00:11]} 36. Kh3 {[%clk 0:00:21]}  Qxf5+ {[%clk 0:00:12]} 0-1


[Site "https://www.chess.com"]